bitfinex-derivatives/quotes_ETHF0:USTF0_20251009
["timestamp","ask_amount","ask_price","bid_price","bid_amount"]
[1760022124428,2.18091,4360.7,4360.6,3.2078]
[1760022124834,2.18091,4360.7,4360.6,3.2099319]
[1760022125628,1.94291,4360.7,4360.6,3.2099319]
[1760022125829,1.94286,4361.3,4360.6,4.6693319]
[1760022126031,1.94286,4361.3,4361.1,3.2078]
[1760022126032,1.7683,4361.2,4361.1,3.2078]
[1760022126735,1.7683,4361.2,4360.8,0.41259]
[1760022126936,1.5303,4360.7,4360.6,3.2099319]
[1760022127235,1.7683,4360.7,4360.6,3.2099319]
[1760022127725,6.7683,4360.7,4360.6,0.0021319]
[1760022128329,0.41266,4360.1,4360.0,3.2078]
[1760022128534,2.14,4359.5,4359.4,3.2078]
[1760022128731,2.79072,4359.5,4359.4,3.2078]
[1760022128932,2.378,4359.5,4359.4,3.2078]
[1760022129531,2.378,4359.5,4359.4,3.20953265]
[1760022130132,2.14,4359.5,4359.4,3.20953265]
[1760022130328,2.378,4359.5,4359.4,3.20953265]
[1760022130539,2.14,4359.5,4359.4,3.20953265]
[1760022130738,2.378,4359.5,4359.4,3.20953265]
[1760022131031,2.378,4359.5,4359.4,0.00173265]
[1760022132431,1.03183,4359.4,4358.8,3.2078]
[1760022132737,1.4118,4358.4,4358.3,3.2078]
[1760022133036,1.6498,4358.4,4358.3,3.2078]
[1760022133538,1.65254986,4358.4,4358.3,3.20963591]
[1760022135242,2.06537986,4358.4,4358.3,3.20963591]
[1760022136136,1.65254986,4358.4,4358.3,3.20963591]
[1760022137341,1.41454986,4358.4,4358.3,3.20963591]
[1760022137642,1.65254986,4358.4,4358.3,3.20963591]
[1760022138342,1.65254986,4358.4,4358.3,0.00183591]
[1760022139039,1.41454986,4358.4,4358.3,0.00183591]
[1760022139438,0.00274986,4358.4,4358.3,1.39893591]
[1760022139631,0.00274986,4358.4,4358.3,6.63693591]
[1760022139834,1.82448,4359.9,4359.1,1.3971]
[1760022140030,0.65069,4359.8,4359.6,3.2078]
[1760022140243,4.8449,4360.5,4359.6,3.62051]
[1760022140244,1.4118,4359.7,4359.6,3.62051]
[1760022140437,1.6498,4359.7,4359.6,3.62051]
[1760022140637,1.4118,4359.7,4359.6,3.62051]
[1760022140838,1.41375302,4359.7,4359.6,3.62051]
[1760022141034,0.4126,4360.8,4359.8,1.3971]
[1760022141245,0.238,4360.7,4359.8,1.6351]
[1760022141539,0.41266,4360.2,4359.6,3.2078]
[1760022141745,1.4118,4359.9,4359.6,3.2078]
[1760022142040,0.00220063,4359.9,4359.8,1.80979]
[1760022142945,0.00220063,4359.9,4359.8,6.80979]
[1760022144041,0.00220063,4359.9,4359.8,1.80979]
[1760022144237,1.41400063,4359.9,4359.8,0.41269]
[1760022144743,0.00220063,4359.9,4359.8,1.80979]
[1760022144940,1.4118,4359.8,4359.6,3.4458]
[1760022145140,1.4118,4359.7,4359.6,3.2078]
[1760022146043,1.8245,4359.7,4359.6,44.0078]
[1760022146236,1.4118,4359.7,4359.6,3.2078]
[1760022146438,0.238,4359.8,4359.6,3.62051]
[1760022146641,0.238,4359.8,4359.7,40.8]
[1760022146946,1.8245,4359.7,4359.6,3.2078]
[1760022147345,1.8245,4359.7,4359.6,44.0078]
[1760022148148,1.4118,4359.7,4359.6,3.2078]
[1760022148545,0.238,4359.7,4359.1,40.8]
[1760022148839,0.238,4359.7,4359.0,3.2078]
[1760022148840,1.4118,4359.4,4359.0,3.2078]
[1760022149041,1.4118,4359.1,4359.0,3.2078]
[1760022149247,1.6498,4359.1,4359.0,3.2078]
[1760022149946,1.4118,4358.8,4358.7,0.41279]
[1760022150339,1.4118,4358.6,4358.5,3.2078]
[1760022150645,1.6498,4358.6,4358.5,3.2078]
[1760022152443,1.4118,4358.4,4358.3,0.00183591]
[1760022153043,1.6498,4358.4,4358.3,0.00183591]
[1760022153546,1.4118,4358.4,4358.3,0.00183591]
[1760022153746,0.6055,4359.0,4358.5,0.41281]
[1760022153747,1.82461,4358.6,4358.5,0.41281]
[1760022153947,1.82461,4358.6,4358.5,3.62061]
[1760022154147,1.82461,4358.6,4358.5,3.2078]
[1760022154351,0.41283,4358.4,4358.3,0.00183591]
[1760022154548,1.82463,4358.4,4358.3,0.00183591]
[1760022156141,2.06263,4358.4,4358.3,0.00183591]
[1760022158452,7.06263,4358.4,4358.3,0.00183591]
[1760022158651,1.82463,4358.4,4358.3,0.00183591]
[1760022159156,1.6498,4358.4,4358.3,40.80183591]
[1760022159957,1.6498,4358.4,4358.3,41.21466591]
[1760022160350,2.06263,4358.4,4358.3,41.21466591]
[1760022160546,1.4118,4358.4,4358.3,41.21466591]
[1760022160747,2.06263,4358.4,4358.3,0.00183591]
[1760022161451,7.06263,4358.4,4358.3,0.00183591]
[1760022161657,7.06263,4358.4,4356.8,2.26424951]
[1760022161658,0.41294,4357.2,4357.0,3.2078]
[1760022161849,1.6498,4357.1,4357.0,3.62076]
[1760022162253,1.6498,4357.1,4357.0,3.2078]
[1760022162855,1.6498,4357.1,4357.0,3.2104425]
[1760022163250,1.6498,4357.1,4357.0,0.0026425]
[1760022163461,0.413,4356.6,4356.5,3.2078]
[1760022163657,1.83725,4356.1,4356.0,3.2078]
[1760022163951,0.41308,4355.8,4355.5,3.2078]
[1760022164157,1.4242,4355.6,4355.5,3.2078]
[1760022164346,1.42672451,4355.6,4355.5,3.20986229]
[1760022165354,0.00252451,4355.6,4355.5,3.20986229]
[1760022165551,4.51e-06,4355.6,4355.5,5.11706229]
[1760022165858,1.4736,4356.8,4355.7,1.4418]
[1760022166053,0.572,4356.5,4356.2,0.41303]
[1760022166253,0.238,4356.4,4356.1,3.2078]
[1760022166455,0.41302,4356.3,4356.1,3.2078]
[1760022166653,0.41302,4356.3,4355.6,0.41309]
[1760022166654,1.88668,4355.7,4355.6,3.2078]
[1760022166952,1.7116,4355.7,4355.6,3.2200071]
[1760022167559,1.4736,4355.7,4355.6,3.2200071]
[1760022167955,1.7116,4355.7,4355.6,3.2200071]
[1760022170558,7.12468,4355.7,4355.6,0.0122071]
[1760022170763,1.88678,4354.7,4354.6,3.2078]
[1760022170958,2.12478,4354.7,4354.6,3.2078]
[1760022171860,7.12478,4354.7,4354.6,0.00295764]
[1760022172261,10.11033538,4354.7,4354.6,0.00295764]
[1760022172963,1.4736,4354.7,4354.6,0.00295764]
[1760022173163,1.7116,4354.7,4354.6,0.00295764]
[1760022174864,1.4736,4354.9,4354.8,0.41317]
[1760022175461,2.0456,4355.5,4355.4,0.41311]
[1760022175661,2.0456,4355.5,4355.3,3.2078]
[1760022175863,1.4736,4355.4,4355.3,3.62092]
[1760022176057,1.4736,4355.4,4355.3,3.2078]
[1760022176058,1.7116,4355.4,4355.3,3.2078]
[1760022176356,0.238,4355.4,4355.0,0.41314]
[1760022176661,0.41314,4355.2,4355.1,40.8]
[1760022176863,1.88674,4355.2,4355.1,40.8]
[1760022177063,0.572,4355.0,4354.7,3.2078]
[1760022177265,1.4736,4355.3,4355.2,0.41312]
[1760022177466,1.7116,4355.3,4355.2,3.62092]
[1760022177760,1.4736,4355.1,4355.0,0.41314]
[1760022178163,1.7116,4355.1,4355.0,0.41314]
[1760022178859,0.65114,4355.1,4354.9,0.41315]
[1760022179060,1.88676,4354.9,4354.7,44.0078]
[1760022179258,1.7116,4354.8,4354.7,3.2078]
[1760022180155,1.4736,4354.8,4354.7,3.2078]
[1760022180361,1.7116,4354.8,4354.7,3.2078]
[1760022180561,3.2078,4355.3,4354.7,3.2078]
[1760022180760,1.4736,4355.4,4354.7,3.2078]
[1760022180964,1.7116,4355.2,4355.1,3.62094]
[1760022181557,1.7116,4355.2,4354.3,1.03303]
[1760022181558,1.4736,4354.7,4353.2,1.23180951]
[1760022181763,1.4736,4354.7,4353.3,1.4418]
[1760022181764,4.1973,4354.3,4353.3,1.4418]
[1760022181964,0.9895,4354.1,4353.3,1.4418]
[1760022182159,0.41326,4353.9,4353.3,1.4418]
[1760022182368,0.238,4353.8,4353.3,1.4418]
[1760022182565,0.65127,4353.8,4353.4,1.4418]
[1760022182764,3.2078,4354.3,4354.1,0.41323]
[1760022182956,3.2078,4354.3,4354.0,0.585]
[1760022182957,0.9895,4354.7,4354.3,1.4418]
[1760022183165,0.238,4354.6,4354.4,0.4132]
[1760022183368,1.03272,4355.7,4354.4,0.4132]
[1760022183369,2.98246455,4355.4,4354.7,1.4418]
[1760022183563,0.238,4355.3,4355.0,1.4418]
[1760022183766,0.41313,4355.2,4355.0,1.4418]
[1760022183969,0.41315,4355.0,4354.8,0.41316]
[1760022184165,3.2078,4355.4,4354.5,0.585]
[1760022184166,0.65116,4354.9,4354.6,1.4418]
[1760022184472,0.41317,4354.8,4354.6,1.4418]
[1760022184678,3.2078,4354.9,4354.8,1.4418]
[1760022184873,0.9895,4356.0,4354.8,1.4418]
[1760022184874,3.2078,4355.6,4354.8,1.4418]
[1760022185165,3.2078,4355.6,4355.5,2.0268]
[1760022185359,0.41307,4355.9,4355.5,2.0268]
[1760022185562,3.85888,4355.8,4355.6,1.4418]
[1760022185767,3.2078,4355.8,4355.1,1.4418]
[1760022185965,0.9895,4355.6,4354.5,0.585]
[1760022186167,3.2078,4355.2,4354.8,1.4418]
[1760022186364,0.238,4355.1,4355.0,0.585]
[1760022186569,3.2078,4355.7,4355.6,1.4418]
[1760022186768,3.4458,4355.7,4355.6,1.4418]
[1760022187070,0.41313,4355.2,4355.0,42.8268]
[1760022187263,1.2275,4355.1,4354.5,0.585]
[1760022187469,0.238,4355.0,4354.5,0.585]
[1760022187770,1.2275,4355.0,4354.6,1.4418]
[1760022187974,0.238,4354.9,4354.6,1.4418]
[1760022188166,0.41317,4354.8,4354.6,1.85498]
[1760022188368,1.40267,4354.8,4354.6,1.4418]
[1760022188770,0.41319,4354.6,4354.4,3.2078]
[1760022188971,1.2275,4354.5,4354.4,3.2078]
[1760022190164,3.2078,4355.0,4354.8,0.41316]
[1760022190369,0.238,4354.9,4354.7,0.41317]
[1760022190574,0.4132,4354.5,4354.4,3.2078]
[1760022190775,1.6407,4354.5,4354.4,3.2078]
[1760022190976,1.6407,4354.5,4354.1,1.4418]
[1760022190977,0.41322,4354.2,4354.1,1.4418]
[1760022191883,0.41321,4354.4,4354.1,1.85503]
[1760022192179,0.41316,4354.9,4354.6,0.41318]
[1760022192373,0.238,4354.8,4354.7,1.4418]
[1760022192875,0.1836,4355.2,4355.0,0.95155]
[1760022193072,0.1836,4355.2,4355.1,1.4339]
[1760022193379,3.6294,4355.2,4355.0,1.4339]
[1760022193577,4.04254,4355.2,4355.0,1.4339]
[1760022193876,3.80454,4355.2,4355.1,1.4339]
[1760022194072,0.1836,4355.2,4355.1,1.4339]
[1760022194976,0.1836,4355.2,4355.1,4.6417]
[1760022195175,0.1836,4355.2,4355.1,9.8797]
[1760022195369,0.41305,4356.1,4356.0,1.9723]
[1760022195579,3.2078,4356.2,4356.1,0.41304]
[1760022195876,3.2078,4356.2,4356.1,1.84694]
[1760022196072,3.4458,4356.2,4356.1,1.84694]
[1760022196275,0.24050448,4356.3,4356.2,1.4339]
[1760022196574,0.00250448,4356.3,4356.2,1.4339]
[1760022196875,0.24050448,4356.3,4356.2,1.4339]
[1760022197870,0.00250448,4356.3,4356.2,1.4339]
[1760022198272,0.24050448,4356.3,4356.2,1.4339]
[1760022198981,0.24050448,4356.3,4356.0,40.8]
[1760022198982,1.1535,4356.1,4356.0,40.8]
[1760022199165,1.1535,4356.1,4355.7,1.4339]
[1760022199166,0.41307,4355.8,4355.7,1.4339]
[1760022199672,0.00250448,4356.3,4356.0,0.5384]
[1760022199866,0.00250448,4356.3,4356.1,1.84694]
[1760022199867,0.238,4356.2,4356.1,1.84694]
[1760022200372,0.00250448,4356.3,4356.2,1.4339]
[1760022200674,3.21030448,4356.3,4356.0,0.5384]
[1760022200873,0.41304,4356.1,4356.0,1.4339]
[1760022201067,0.65104,4356.1,4356.0,1.4339]
[1760022201378,0.238,4356.1,4356.0,42.2339]
[1760022201672,3.62333448,4356.3,4356.1,0.41304]
[1760022201673,0.00250448,4356.3,4356.1,0.41304]
[1760022201870,0.00250448,4356.3,4356.2,1.4339]
[1760022202078,0.24050448,4356.3,4356.2,1.4339]
[1760022202370,0.00250448,4356.3,4356.2,1.4339]
[1760022202572,0.24050448,4356.3,4356.2,1.4339]
[1760022203284,0.00250448,4356.3,4356.2,1.4339]
[1760022203578,0.41303,4356.2,4356.1,1.4339]
[1760022204282,1.1535,4355.9,4355.8,3.2078]
[1760022204469,0.41312,4355.4,4355.2,1.4339]
[1760022204668,0.238,4355.3,4355.2,1.4339]
[1760022204869,0.238,4355.3,4355.2,42.2339]
[1760022205578,0.238,4355.3,4355.2,1.4339]
[1760022207176,0.41312,4355.4,4355.2,1.84702]
[1760022207475,1.56658,4355.8,4355.6,1.4339]
[1760022207677,0.41308,4355.8,4355.6,1.4339]
[1760022207875,0.41311,4355.5,4355.3,1.4339]
[1760022208075,0.65111,4355.5,4355.3,1.4339]
[1760022208272,0.238,4355.5,4355.0,0.5384]
[1760022208471,0.41317,4354.8,4354.0,2.18825581]
[1760022208676,0.41318,4354.7,4354.0,3.7462]
[1760022208880,0.238,4354.8,4354.5,2.0189]
[1760022208881,1.3915,4354.8,4354.5,2.0189]
[1760022209071,0.41318,4354.7,4354.5,2.0189]
[1760022209278,1.56668,4354.7,4354.5,1.4339]
[1760022209583,0.41318,4354.7,4354.5,1.4339]
[1760022209881,1.1535,4354.6,4354.5,1.4339]
[1760022210680,0.41321,4354.3,4354.2,1.4339]
[1760022210877,0.41325,4353.9,4353.8,1.23388751]
[1760022211079,0.4133,4353.4,4353.3,1.23653672]
[1760022211277,0.4133,4353.4,4353.3,0.00264921]
[1760022211582,0.4133,4353.4,4353.3,40.80264921]
[1760022211781,0.4133,4353.4,4353.3,0.00264921]
[1760022212382,0.238,4353.5,4353.4,1.4339]
[1760022213087,0.4133,4353.4,4353.3,1.43654921]
[1760022213386,1.8048,4353.4,4353.3,0.00264921]
[1760022213881,0.238,4353.4,4353.3,1.43654921]
[1760022214076,1.3915,4353.4,4353.3,0.00264921]
[1760022214486,9.41872939,4353.4,4353.3,9.21e-06]
[1760022214676,9.60050419,4353.4,4353.3,9.21e-06]
[1760022216783,4.18072939,4353.4,4353.3,9.21e-06]
[1760022216979,4.41872939,4353.4,4353.3,9.21e-06]
[1760022217284,9.41872939,4353.4,4353.3,9.21e-06]
[1760022218377,0.41346,4351.8,4351.6,4.6417]
[1760022218677,0.238,4351.7,4351.6,3.2078]
[1760022218980,0.41349,4351.5,4351.2,40.8]
[1760022219179,0.238,4351.4,4351.3,1.84739]
[1760022219378,3.2078,4352.4,4351.8,0.41344]
[1760022219379,0.148,4351.9,4351.8,0.41344]
[1760022219577,0.00195077,4351.9,4351.6,1.03368]
[1760022219772,0.23995077,4351.9,4351.8,0.41345]
[1760022219982,0.00195077,4351.9,4351.8,1.84735]
[1760022220976,0.00195077,4351.9,4351.8,1.4339]
[1760022221287,3.2078,4353.5,4353.3,0.41331]
[1760022221481,0.238,4353.4,4353.1,1.4339]
[1760022221681,1.1325,4353.3,4353.1,1.4339]
[1760022221877,3.2078,4353.5,4353.4,0.4133]
[1760022222077,3.2078,4353.5,4353.4,1.85945192]
[1760022222282,3.2078,4353.5,4353.4,1.44615192]
[1760022222483,3.20941338,4353.5,4353.4,1.44615192]
[1760022223382,3.44741338,4353.5,4353.4,1.44615192]
[1760022223687,0.1836,4355.3,4355.0,0.567]
[1760022223983,0.41289,4357.8,4355.0,0.567]
[1760022223984,1.2722,4357.6,4356.6,1.3642]
[1760022224185,1.2722,4357.6,4357.2,3.2078]
[1760022224390,1.2722,4357.6,4356.7,40.8]
[1760022224391,1.2722,4357.4,4356.7,44.0078]
[1760022224585,1.3055,4357.2,4357.0,0.01837788]
[1760022224781,4.5133,4357.1,4357.0,0.02016656]
[1760022224983,1.3055,4356.9,4356.1,0.41304]
[1760022225185,0.238,4356.8,4356.0,3.2078]
[1760022225385,3.03436808,4356.8,4356.0,3.7566]
[1760022225592,0.238,4356.7,4356.5,4.9757]
[1760022225889,0.238,4356.7,4356.5,1.35677004]
[1760022226289,0.00295306,4357.2,4356.5,1.35677004]
[1760022226290,0.00295306,4357.2,4356.6,1.3549]
[1760022226489,0.238,4357.1,4356.7,1.3549]
[1760022226785,0.41296,4357.0,4356.5,3.20967004]
[1760022226982,0.238,4357.1,4356.5,4.97757004]
[1760022227183,0.238,4357.1,4356.8,1.3549]
[1760022227492,1.3055,4357.0,4356.7,0.41298]
[1760022227889,0.238,4357.1,4356.7,0.41299]
[1760022228190,1.95645,4357.1,4356.5,3.62267004]
[1760022228691,0.41297,4356.9,4356.5,0.00187004]
[1760022228992,0.65095,4357.1,4356.5,0.00187004]
[1760022229191,1.95645,4357.1,4356.5,0.00187004]
[1760022229591,0.41297,4357.0,4356.5,0.00187004]
[1760022229895,1.3055,4356.7,4356.5,0.00187004]
[1760022230088,1.5435,4356.6,4356.5,0.00187004]
[1760022230692,1.9565,4356.6,4356.5,0.00187004]
[1760022231297,0.41305,4356.1,4355.5,0.41309]
[1760022231489,1.3055,4355.8,4355.4,4.9758]
[1760022231685,1.3055,4355.8,4355.4,3.6209]
[1760022231891,0.41308,4355.7,4355.4,3.2078]
[1760022232203,0.238,4355.6,4355.4,3.20996552]
[1760022232398,1.5435,4355.6,4355.4,3.20996552]
[1760022232990,1.5435,4355.6,4355.4,3.62306552]
[1760022233286,1.95659,4355.6,4355.4,3.20996552]
[1760022233490,1.5435,4355.6,4355.4,3.20996552]
[1760022233690,1.5435,4355.6,4355.4,3.62306552]
[1760022233894,0.238,4355.6,4355.5,1.3549]
[1760022234096,3.62075,4357.1,4356.6,1.3549]
[1760022234294,3.62075,4357.1,4356.3,1.3549]
[1760022234295,1.3055,4356.9,4356.3,1.3549]
[1760022234602,1.3055,4356.9,4356.4,0.41301]
[1760022234895,1.3055,4356.5,4356.4,0.41301]
[1760022235198,3.2078,4359.9,4357.0,0.5488]
[1760022235501,0.41269,4359.9,4359.0,0.5488]
[1760022235694,0.238,4359.8,4359.2,0.41274]
[1760022235887,0.238,4359.8,4359.4,1.3549]
[1760022236194,0.238,4359.8,4359.6,0.4127]
[1760022236498,0.00166713,4359.8,4359.7,1.3549]
[1760022236888,3.5705,4361.0,4360.5,0.41263]
[1760022237199,3.5705,4361.0,4360.8,1.76749]
[1760022237200,3.2078,4361.0,4360.8,1.76749]
[1760022237386,1.088,4361.4,4361.1,0.41256]
[1760022237589,0.41251,4361.8,4361.2,0.41255]
[1760022237798,1.326,4361.7,4361.2,1.76745]
[1760022238091,0.41254,4361.5,4361.1,1.3549]
[1760022238593,1.088,4361.5,4361.1,0.41256]
[1760022238995,1.088,4361.5,4361.2,0.41255]
[1760022239193,0.41253,4361.5,4361.0,2.31628]
[1760022239394,1.50053,4361.5,4361.0,1.9037]
[1760022239595,0.238,4361.4,4361.0,1.3549]
[1760022239792,0.41257,4361.2,4360.9,3.2078]
[1760022239992,1.50057,4361.2,4360.5,41.76143]
[1760022240296,1.088,4361.2,4360.7,0.4126]
[1760022240497,1.088,4361.2,4360.8,1.3549]
[1760022240696,1.50057,4361.2,4360.8,1.3549]
[1760022241495,0.41258,4361.0,4360.8,1.3549]
[1760022241695,1.088,4361.2,4360.8,1.3549]
[1760022241896,1.088,4361.2,4360.8,4.5627]
[1760022242097,1.088,4361.2,4360.8,4.97529]
[1760022242299,0.41258,4361.0,4360.8,4.5627]
[1760022242498,1.50058,4361.0,4360.8,3.2078]
[1760022242803,0.238,4361.4,4360.8,4.5627]
[1760022243000,1.50053,4361.6,4361.1,0.41257]
[1760022243196,1.50053,4361.6,4360.5,41.3488]
[1760022243197,0.00248549,4361.7,4361.5,0.41252]
[1760022243397,0.00248549,4361.7,4361.6,1.3549]
[1760022243700,0.1052,4362.0,4361.9,1.76739]
[1760022243898,0.1052,4362.0,4361.9,4.97519]
[1760022244105,0.41245,4362.4,4361.9,44.0078]
[1760022244496,0.4148981,4362.4,4361.9,44.0078]
[1760022245106,0.41248,4362.1,4361.9,40.8]
[1760022245401,1.088,4362.0,4361.9,44.0078]
[1760022245602,0.41248,4362.1,4361.9,3.2078]
[1760022245804,0.02525428,4362.0,4361.9,4.5627]
[1760022247799,1.11325428,4362.0,4361.9,3.2078]
[1760022248503,1.088,4361.8,4361.1,40.8]
[1760022248698,1.088,4361.8,4360.9,4.5627]
[1760022248699,0.41257,4361.1,4360.9,3.2078]
[1760022249097,0.41257,4361.1,4361.0,1.3549]
[1760022249304,0.41257,4361.1,4360.9,3.2078]
[1760022249305,1.088,4361.0,4360.9,3.2078]
[1760022249804,0.26225428,4361.0,4360.9,4.5627]
[1760022250002,0.02525428,4361.0,4360.9,4.5627]
[1760022251498,0.02525428,4361.0,4360.9,3.2078]
[1760022251802,1.11325428,4361.0,4360.9,3.2078]
[1760022252602,0.41263,4360.5,4360.4,4.5606]
[1760022252808,0.43788428,4360.5,4360.4,4.5606]
[1760022253007,1.51028428,4360.5,4360.4,3.2078]
[1760022253213,1.51028428,4360.5,4359.8,1.76549]
[1760022253214,1.03163,4360.3,4359.9,3.2078]
[1760022253402,1.0724,4360.2,4359.9,4.5606]
[1760022253597,0.41267,4360.0,4359.9,44.0078]
[1760022253901,1.74732428,4360.0,4359.9,3.2078]
[1760022254607,4.78432596,4360.0,4359.9,3.2078]
[1760022255599,0.41272,4359.5,4359.4,3.21026088]
[1760022255805,1.48512,4359.5,4359.4,3.21026088]
[1760022256004,1.33465428,4359.5,4359.4,3.21026088]
[1760022256204,0.26225428,4359.5,4359.4,4.56306088]
[1760022256706,1.33465428,4359.5,4359.4,3.21026088]
[1760022256909,1.69735428,4359.5,4359.4,3.21026088]
[1760022257107,4.63519731,4359.5,4359.4,0.00246088]
[1760022257904,4.27249731,4359.5,4359.4,0.00246088]
[1760022258512,3.20009731,4359.5,4359.4,0.00246088]
[1760022258701,4.27249731,4359.5,4359.4,0.00246088]
[1760022258899,9.27249731,4359.5,4359.4,0.00246088]
[1760022259306,0.02525428,4359.5,4359.4,1.35526088]
[1760022259610,0.02525428,4359.5,4359.4,1.76799088]
[1760022259801,0.26225428,4359.5,4359.4,1.76799088]
[1760022260007,0.26225428,4359.5,4359.4,1.35526088]
[1760022260513,1.33465428,4359.5,4359.4,0.00246088]
[1760022261211,0.41277,4359.0,4358.9,3.2078]
[1760022261412,0.237,4359.3,4359.1,1.3528]
[1760022261606,0.41275,4359.2,4358.9,3.62057]
[1760022261808,0.237,4359.3,4359.0,1.3528]
[1760022262002,0.02525428,4359.2,4359.1,1.3528]
[1760022262414,0.41276,4359.1,4358.9,4.56303743]
[1760022262603,0.02525428,4359.2,4358.9,4.56303743]
[1760022262604,0.43801428,4359.2,4358.9,3.62300743]
[1760022262808,0.41276,4359.1,4359.0,1.3528]
[1760022263214,0.43801428,4359.1,4359.0,1.3528]
[1760022263421,1.0724,4359.0,4358.9,3.21023743]
[1760022263906,0.02525428,4359.1,4359.0,1.3528]
[1760022264113,0.26225428,4359.1,4359.0,1.3528]
[1760022264418,0.02525428,4359.1,4359.0,1.3528]
[1760022264711,0.02525428,4359.1,4359.0,1.8901]
[1760022266920,0.02525428,4359.1,4359.0,2.30287]
[1760022267615,0.02525428,4359.1,4359.0,1.8901]
[1760022267922,1.48517,4359.0,4358.9,3.21023743]
[1760022268118,1.09765428,4359.0,4358.9,3.62301743]
[1760022268420,0.43802428,4359.0,4358.9,4.97581743]
[1760022268616,0.43802428,4359.0,4358.9,4.56303743]
[1760022268817,0.43802428,4359.0,4358.9,3.21023743]
[1760022268818,1.51042428,4359.0,4358.9,3.21023743]
[1760022269614,1.03212,4358.2,4357.8,3.2078]
[1760022269825,0.41287,4357.9,4357.8,3.2078]
[1760022270123,1.48527,4357.9,4357.8,3.2078]
[1760022270416,1.51052428,4357.9,4357.8,3.2078]
[1760022270616,0.02525428,4357.9,4357.8,4.56347008]
[1760022271819,0.41292,4357.4,4357.3,3.2078]
[1760022272022,1.72232,4357.4,4357.3,3.2078]
[1760022272213,1.74757428,4357.4,4357.3,3.2078]
[1760022272815,1.74757428,4357.4,4357.3,3.21001699]
[1760022273018,1.36601774,4357.4,4357.3,3.21001699]
[1760022273223,0.29361774,4357.4,4357.3,3.21001699]
[1760022273420,0.29361774,4357.4,4357.3,4.56281699]
[1760022273621,0.05661774,4357.4,4357.3,4.56281699]
[1760022275125,2.1044,4358.7,4358.5,0.5373]
[1760022275126,0.4128,4358.7,4358.5,0.5373]
[1760022275329,0.4128,4358.7,4358.5,1.8901]
[1760022275527,0.41282,4358.5,4358.4,3.2078]
[1760022275729,1.0724,4359.2,4358.4,3.2078]
[1760022275730,0.6498,4358.7,4358.4,3.2078]
[1760022276233,0.6498,4358.7,4358.5,1.3528]
[1760022276626,0.00264537,4359.3,4358.6,1.3528]
[1760022276932,0.237,4359.2,4359.1,4.5606]
[1760022277131,1.72215,4359.2,4359.1,3.2078]
[1760022278124,0.4128,4358.7,4358.6,4.5606]
[1760022278624,1.4852,4358.7,4358.6,3.2078]
[1760022278932,0.4128,4358.7,4358.6,3.2078]
[1760022280632,0.4128,4358.7,4358.6,4.5606]
[1760022283428,0.1835,4359.2,4359.0,0.549]
[1760022283732,0.4205,4359.2,4359.1,4.6017]
[1760022284035,0.83325,4359.2,4359.1,4.6017]
[1760022284535,0.64975,4359.2,4359.1,4.6017]
[1760022285136,0.64975,4359.2,4359.1,1.3939]
[1760022285437,0.41279,4358.9,4358.6,3.6206]
[1760022285638,0.41279,4358.8,4358.7,1.4254]
[1760022285838,0.41278,4358.9,4358.7,0.41279]
[1760022286038,1.2619,4359.2,4358.9,1.4254]
[1760022286240,0.41277,4359.0,4358.9,1.4254]
[1760022287330,1.03193,4359.0,4358.6,3.2078]
[1760022287534,1.4377,4358.7,4358.6,3.2078]
[1760022287837,1.6747,4358.7,4358.6,3.2078]
[1760022288332,0.41284,4358.2,4358.1,3.2078]
[1760022288532,0.64984,4358.2,4358.1,3.2078]
[1760022288738,1.67474,4358.2,4358.1,3.2078]
[1760022290137,0.41288,4357.8,4357.7,1.4254]
[1760022290436,1.67475,4358.2,4357.7,1.4254]
[1760022290639,0.41286,4358.0,4357.9,1.4254]
[1760022290943,0.00264537,4359.3,4359.0,0.5382]
[1760022291136,0.00264537,4359.3,4359.0,1.9636]
[1760022291338,0.00264537,4359.3,4359.1,0.41276]
[1760022291642,0.41268,4360.0,4359.8,1.4254]
[1760022291935,0.41266,4360.2,4360.1,1.4254]
[1760022292137,0.237,4360.3,4360.1,1.4254]
[1760022292344,0.237,4360.3,4360.1,0.41266]
[1760022292533,0.00220558,4360.3,4360.2,1.4254]
[1760022292845,0.00220558,4360.3,4360.2,4.6332]
[1760022294639,0.41267,4360.1,4359.7,1.64685378]
[1760022294838,0.00220558,4360.3,4360.1,0.41266]
[1760022295038,0.00220558,4360.3,4360.2,4.6332]
[1760022295740,0.41258,4361.0,4360.2,4.6332]
[1760022295741,0.4124,4361.1,4360.6,1.4254]
[1760022296038,0.4124,4361.1,4360.8,0.4126]
[1760022296238,0.4124,4361.1,4361.0,0.5382]
[1760022296544,0.4124,4361.1,4361.0,1.9636]
[1760022296742,1.21086414,4361.1,4361.0,0.00245729]
[1760022297442,1.02746414,4361.1,4361.0,0.00245729]
[1760022297945,9.06675208,4361.1,4361.0,0.00245729]
[1760022299538,9.06675208,4361.1,4360.2,3.2078]
[1760022299539,0.3627,4361.0,4360.2,3.2078]
[1760022299743,1.43755,4360.3,4360.2,3.2078]
[1760022299946,1.43759,4359.8,4359.7,3.2078]
[1760022300241,1.0249,4359.8,4359.7,3.2078]
[1760022300538,3.2078,4360.4,4360.0,0.5382]
[1760022300539,0.237,4360.1,4360.0,0.5382]
[1760022300740,0.41264,4360.4,4360.0,0.5382]
[1760022300741,0.41264,4360.4,4360.0,1.9636]
[1760022300940,0.4204,4360.6,4360.5,1.9636]
[1760022301133,0.1834,4360.6,4360.5,1.9636]
[1760022302137,0.1834,4360.6,4360.5,1.4254]
[1760022302536,0.41263,4360.5,4360.3,3.2078]
[1760022302737,0.41263,4360.5,4360.3,4.6332]